bitfinex-derivatives/quotes_BTCF0:USTF0_20241214
["timestamp","ask_amount","ask_price","bid_price","bid_amount"]
[1734156641006,0.04907,101890.0,101880.0,0.60463782]
[1734156641208,0.40987,101890.0,101880.0,0.60463782]
[1734156642216,0.40987,101890.0,101880.0,0.8393448]
[1734156642914,0.4978317,101890.0,101880.0,0.8393448]
[1734156643305,0.55261552,101890.0,101880.0,0.73548698]
[1734156643516,0.67009836,101890.0,101880.0,0.50078]
[1734156643711,0.70019836,101890.0,101880.0,0.50078]
[1734156648100,0.61223666,101890.0,101880.0,0.73548698]
[1734156649213,1.11989021,101890.0,101880.0,0.73548698]
[1734156650316,1.11989021,101890.0,101880.0,0.73498698]
[1734156650514,1.11989021,101890.0,101880.0,0.7897708]
[1734156650705,1.06510639,101890.0,101880.0,0.7897708]
[1734156652214,0.94762355,101890.0,101880.0,0.7897708]
[1734156658025,0.94762355,101890.0,101880.0,0.73498698]
[1734156658239,0.94762355,101890.0,101880.0,1.02895989]
[1734156658520,1.00240737,101890.0,101880.0,1.08374371]
[1734156658720,1.00240737,101890.0,101880.0,0.7897708]
[1734156658917,1.00240737,101890.0,101880.0,1.08374371]
[1734156660321,1.06530976,101890.0,101880.0,1.08374371]
[1734156660520,0.94762355,101890.0,101880.0,1.08374371]
[1734156660724,1.06530932,101890.0,101880.0,1.08374371]
[1734156661025,0.94762355,101890.0,101880.0,1.08374371]
[1734156661224,1.06531115,101890.0,101880.0,1.08374371]
[1734156661422,0.94762355,101890.0,101880.0,1.08374371]
[1734156661617,1.06531192,101890.0,101880.0,1.08374371]
[1734156662133,0.94762355,101890.0,101880.0,1.08374371]
[1734156662428,1.06531429,101890.0,101880.0,1.08374371]
[1734156662829,1.06531423,101890.0,101880.0,1.08374371]
[1734156663234,1.06531552,101890.0,101880.0,1.13281771]
[1734156663732,1.06531552,101890.0,101880.0,0.89811073]
[1734156665627,0.70451552,101890.0,101880.0,0.89811073]
[1734156667427,0.70451552,101890.0,101880.0,0.84332691]
[1734156667635,0.70451552,101890.0,101880.0,0.89811073]
[1734156668325,0.67441552,101890.0,101880.0,0.89811073]
[1734156675541,0.67441552,101890.0,101880.0,0.84332691]
[1734156675751,0.67441552,101890.0,101880.0,0.89811073]
[1734156676043,0.67441552,101890.0,101880.0,0.84332691]
[1734156676246,0.67441552,101890.0,101880.0,0.89811073]
[1734156683854,0.67441552,101890.0,101880.0,0.84332691]
[1734156684253,0.67441552,101890.0,101880.0,0.89811073]
[1734156684555,0.55672355,101890.0,101880.0,0.89811073]
[1734156688655,0.55672355,101890.0,101880.0,0.84332691]
[1734156692252,0.55672355,101890.0,101880.0,1.1960944]
[1734156693141,0.3137023,101890.0,101880.0,1.25087822]
[1734156693342,0.3137023,101890.0,101880.0,1.19627267]
[1734156693656,0.3137023,101890.0,101880.0,1.14886168]
[1734156694950,0.3137023,101890.0,101880.0,1.14847133]
[1734156695153,0.3137023,101890.0,101880.0,0.90212149]
[1734156695549,0.3137023,101890.0,101880.0,1.19620417]
[1734156696557,0.3137023,101890.0,101880.0,1.25098799]
[1734156697151,0.16684875,101890.0,101880.0,1.25098799]
[1734156697654,0.3137023,101890.0,101880.0,1.25098799]
[1734156698057,0.16684875,101890.0,101880.0,1.25098799]
[1734156698259,0.11777875,101890.0,101880.0,1.25098799]
[1734156698654,0.16684875,101890.0,101880.0,1.25098799]
[1734156699056,0.11777875,101890.0,101880.0,1.25098799]
[1734156700261,0.11777875,101890.0,101880.0,1.19620417]
[1734156700655,0.11777875,101890.0,101880.0,1.25098799]
[1734156700965,0.11777875,101890.0,101880.0,1.19620417]
[1734156701150,0.11777875,101890.0,101880.0,1.25098799]
[1734156704960,0.11977658,101890.0,101880.0,1.25098799]
[1734156706368,0.11977658,101890.0,101880.0,1.19620417]
[1734156709769,0.16884658,101890.0,101880.0,1.19620417]
[1734156709966,0.20214658,101890.0,101880.0,1.19620417]
[1734156711771,0.34900013,101890.0,101880.0,1.19620417]
[1734156711962,0.20214658,101890.0,101880.0,1.19620417]
[1734156712265,0.71002386,101890.0,101880.0,1.19620417]
[1734156712774,0.34944759,101890.0,101880.0,1.19620417]
[1734156712958,0.71024759,101890.0,101880.0,1.19620417]
[1734156714667,0.71047132,101890.0,101880.0,1.19620417]
[1734156715173,0.71069505,101890.0,101880.0,1.19620417]
[1734156715973,0.76547887,101890.0,101880.0,1.19620417]
[1734156716773,0.7657026,101890.0,101880.0,1.19620417]
[1734156717282,0.76592633,101890.0,101880.0,1.19620417]
[1734156718077,0.40512633,101890.0,101880.0,1.19620417]
[1734156718382,0.76592633,101890.0,101880.0,1.19620417]
[1734156718881,0.76771487,101890.0,101880.0,1.19620417]
[1734156719373,0.71293105,101890.0,101880.0,1.19620417]
[1734156719573,0.76771487,101890.0,101880.0,1.19620417]
[1734156719780,0.67963105,101890.0,101880.0,1.25098799]
[1734156720182,0.68142275,101890.0,101880.0,1.25098799]
[1734156721388,0.68321445,101890.0,101880.0,1.25098799]
[1734156722385,0.6745023,101890.0,101880.0,1.25098799]
[1734156722583,0.68442759,101890.0,101880.0,1.25098799]
[1734156728684,0.68442759,101890.0,101880.0,1.19620417]
[1734156728888,0.68442759,101890.0,101880.0,1.25098799]
[1734156730588,0.68442759,101890.0,101880.0,1.19620417]
[1734156733088,0.68442759,101890.0,101880.0,1.25098799]
[1734156734388,0.68442759,101890.0,101880.0,0.8982205]
[1734156735388,0.68442759,101890.0,101880.0,1.19620417]
[1734156735788,0.68442759,101890.0,101880.0,0.84343668]
[1734156735989,0.68442759,101890.0,101880.0,1.19620417]
[1734156737993,0.79773108,101890.0,101880.0,0.29436268]
[1734156738200,0.65087753,101890.0,101880.0,0.52969444]
[1734156738397,0.65087753,101890.0,101880.0,0.23561176]
[1734156739198,0.67652875,101890.0,101880.0,0.23561176]
[1734156739393,0.82936293,101890.0,101870.0,0.23583176]
[1734156739600,0.94919388,101880.0,101870.0,0.23583176]
[1734156739901,0.80204527,101880.0,101870.0,0.23583176]
[1734156740302,0.94910775,101880.0,101860.0,0.57849544]
[1734156740501,0.59223809,101870.0,101860.0,0.57849544]
[1734156740702,0.59223809,101870.0,101860.0,0.57962544]
[1734156741297,0.68044106,101870.0,101860.0,0.57962544]
[1734156741601,0.62565724,101870.0,101860.0,0.63440926]
[1734156742001,0.68044106,101870.0,101860.0,0.63440926]
[1734156742203,0.62565724,101870.0,101860.0,0.63440926]
[1734156742402,0.68044106,101870.0,101860.0,0.34032658]
[1734156744000,0.68044106,101870.0,101860.0,0.28554276]
[1734156744999,0.62565724,101870.0,101860.0,0.34032658]
[1734156745606,0.635373,101870.0,101860.0,0.34032658]
[1734156746305,0.51772302,101870.0,101860.0,0.34032658]
[1734156746504,0.51772302,101870.0,101860.0,0.84032658]
[1734156748107,0.50800726,101870.0,101860.0,0.84032658]
[1734156748306,0.09812826,101870.0,101860.0,0.8951104]
[1734156748495,0.00992529,101870.0,101860.0,1.25189308]
[1734156749400,0.00992529,101870.0,101860.0,1.01656132]
[1734156749601,0.00992529,101870.0,101860.0,1.37736132]
[1734156750098,0.00992529,101870.0,101860.0,1.3225775]
[1734156751009,0.05900429,101870.0,101860.0,1.26779368]
[1734156751213,0.05900429,101870.0,101860.0,1.3230775]
[1734156751806,0.00992529,101870.0,101860.0,1.3230775]
[1734156752015,0.00992529,101870.0,101860.0,1.37786132]
[1734156752209,0.00992529,101870.0,101860.0,1.37736132]
[1734156753204,0.00992529,101870.0,101860.0,1.37786132]
[1734156754313,0.00992529,101870.0,101860.0,1.37736132]
[1734156755214,0.00992529,101870.0,101860.0,1.37786132]
[1734156760418,0.00992529,101870.0,101860.0,1.73062881]
[1734156762013,0.00992529,101870.0,101860.0,1.67584499]
[1734156762211,0.00992529,101870.0,101860.0,1.73062881]
[1734156764222,0.00992529,101870.0,101860.0,1.73012881]
[1734156764918,0.09812826,101870.0,101860.0,1.73012881]
[1734156767416,0.09812826,101870.0,101860.0,1.68505844]
[1734156773518,0.09812826,101870.0,101860.0,1.43604613]
[1734156774517,0.09812826,101870.0,101860.0,1.68516254]
[1734156775422,0.21577824,101870.0,101860.0,1.68516254]
[1734156776227,0.21577824,101870.0,101860.0,1.32436254]
[1734156776419,0.21577824,101870.0,101860.0,1.68516254]
[1734156776624,0.21577824,101870.0,101860.0,1.32436254]
[1734156776818,0.21577824,101870.0,101860.0,1.68516254]
[1734156777022,0.21577824,101870.0,101860.0,1.32436254]
[1734156777517,0.21577824,101870.0,101860.0,1.68516254]
[1734156778823,0.21577824,101870.0,101860.0,1.65516254]
[1734156779018,0.21577824,101870.0,101860.0,1.5678182]
[1734156783320,0.21577824,101870.0,101860.0,1.31856231]
[1734156783518,0.21577824,101870.0,101860.0,1.56797102]
[1734156785728,0.21577824,101870.0,101860.0,1.62275484]
[1734156787026,0.21577824,101870.0,101860.0,1.26195484]
[1734156787329,0.21577824,101870.0,101860.0,1.62275484]
[1734156794929,0.21577824,101870.0,101860.0,1.26195484]
[1734156795135,0.21577824,101870.0,101860.0,1.62275484]
[1734156795430,0.21577824,101870.0,101860.0,1.5131872]
[1734156795735,0.21577824,101870.0,101860.0,1.62275484]
[1734156795933,0.21577824,101870.0,101860.0,1.6224729]
[1734156796734,0.12757527,101870.0,101860.0,1.6224729]
[1734156797128,0.21592215,101870.0,101860.0,1.6224729]
[1734156800532,0.21592215,101870.0,101860.0,1.62199677]
[1734156804933,0.21592215,101870.0,101860.0,1.26119677]
[1734156805138,0.21592215,101870.0,101860.0,1.62199677]
[1734156805341,0.21592215,101870.0,101860.0,1.62196541]
[1734156805735,0.21592215,101870.0,101860.0,1.56718159]
[1734156805935,0.21592215,101870.0,101860.0,1.20638159]
[1734156806136,0.21592215,101870.0,101860.0,1.56718159]
[1734156809746,0.21592215,101870.0,101860.0,1.51239777]
[1734156809951,0.21592215,101870.0,101860.0,1.56755195]
[1734156810536,0.21592215,101870.0,101860.0,1.20675195]
[1734156810735,0.21592215,101870.0,101860.0,1.56755195]
[1734156810940,0.21592215,101870.0,101860.0,1.51276813]
[1734156811146,0.21592215,101870.0,101860.0,1.56755195]
[1734156814349,0.21592215,101870.0,101860.0,1.31856231]
[1734156814550,0.21592215,101870.0,101860.0,1.56810067]
[1734156817642,0.21592215,101870.0,101860.0,1.20730067]
[1734156817852,0.21592215,101870.0,101860.0,1.56810067]
[1734156818951,0.21592215,101870.0,101860.0,1.31856231]
[1734156819151,0.21592215,101870.0,101860.0,1.5677609]
[1734156819742,0.21592215,101870.0,101860.0,1.62254472]
[1734156820455,0.21592215,101870.0,101860.0,1.5677609]
[1734156820848,0.21592215,101870.0,101860.0,1.62254472]
[1734156821450,0.21592215,101870.0,101860.0,1.26977723]
[1734156821757,0.09827217,101870.0,101860.0,1.74128511]
[1734156824951,0.09827217,101870.0,101860.0,1.32997723]
[1734156826560,0.00992529,101870.0,101860.0,1.32997723]
[1734156828060,0.00992529,101870.0,101860.0,1.3282388]
[1734156829158,0.09827217,101870.0,101860.0,1.3282388]
[1734156829664,0.00992529,101870.0,101860.0,1.3282388]
[1734156832453,0.00992529,101870.0,101860.0,1.73954668]
[1734156833767,0.00992529,101870.0,101860.0,1.62997904]
[1734156833972,0.00992529,101870.0,101860.0,1.73954668]
[1734156838672,0.00992529,101870.0,101860.0,1.3282388]
[1734156840474,0.00992529,101870.0,101860.0,1.73954668]
[1734156841071,0.00992529,101870.0,101860.0,1.68034467]
[1734156842469,0.00992529,101870.0,101860.0,1.67931785]
[1734156842774,0.09827217,101870.0,101860.0,1.67931785]
[1734156843565,0.09827217,101870.0,101860.0,1.67937707]
[1734156844672,0.09827217,101870.0,101860.0,1.67927922]
[1734156848273,0.09827217,101870.0,101860.0,1.32717335]
[1734156848684,0.00992529,101870.0,101860.0,1.73848123]
[1734156849474,0.00992529,101870.0,101860.0,1.37768123]
[1734156849680,0.00992529,101870.0,101860.0,1.73848123]
[1734156850578,0.00992529,101870.0,101860.0,1.67828123]
[1734156851276,0.09827217,101870.0,101860.0,1.56871359]
[1734156851573,0.14735117,101870.0,101860.0,1.62349741]
[1734156851772,0.17895117,101870.0,101860.0,1.26697335]
[1734156851975,0.29660115,101870.0,101860.0,1.21218953]
[1734156852364,0.29660115,101870.0,101860.0,1.56458383]
[1734156853375,0.29660115,101870.0,101860.0,1.61936765]
[1734156853574,0.24752215,101870.0,101860.0,1.61936765]
[1734156854270,0.12987217,101870.0,101860.0,1.61936765]
[1734156855866,0.12987217,101870.0,101860.0,1.50980001]
[1734156856074,0.12987217,101870.0,101860.0,1.61936765]
[1734156857382,0.24752215,101870.0,101860.0,1.37297294]
[1734156858579,0.21592215,101870.0,101860.0,1.37297294]
[1734156858784,0.21592215,101870.0,101860.0,1.40317294]
[1734156860181,0.09827217,101870.0,101860.0,1.40317294]
[1734156864778,0.09827217,101870.0,101860.0,1.64956765]
[1734156866281,0.09827217,101870.0,101860.0,1.61936765]
[1734156866682,0.09827217,101870.0,101860.0,1.56571854]
[1734156871191,0.09827217,101870.0,101860.0,1.56566285]
[1734156879294,0.09827217,101870.0,101860.0,1.21326855]
[1734156879599,0.09827217,101870.0,101860.0,1.56605547]
[1734156879792,0.09827217,101870.0,101860.0,1.21326855]
[1734156880588,0.21592215,101870.0,101860.0,1.56608541]
[1734156881094,0.09827217,101870.0,101860.0,1.21326855]
[1734156881294,0.21592215,101870.0,101860.0,1.21326855]
[1734156885688,0.26500115,101870.0,101860.0,1.15848473]
[1734156885891,0.53745427,101870.0,101860.0,0.90307742]
[1734156886211,0.71491675,101870.0,101860.0,1.15221071]
[1734156886395,0.71491675,101870.0,101860.0,1.19711703]
[1734156887592,0.71491675,101870.0,101860.0,1.25190085]
[1734156889190,0.56785427,101870.0,101860.0,0.89903443]
[1734156891004,0.57791089,101870.0,101860.0,0.89903443]
[1734156891304,0.66618034,101870.0,101860.0,0.84425061]
[1734156891604,0.66618034,101870.0,101860.0,0.89903443]
[1734156891802,0.57791089,101870.0,101860.0,0.89903443]
[1734156892001,0.66617343,101870.0,101860.0,0.89903443]
[1734156892597,0.72095725,101870.0,101860.0,0.84425061]
[1734156892796,0.63269471,101870.0,101860.0,0.84425061]
[1734156896308,0.72093871,101870.0,101860.0,0.84425061]
[1734156898707,0.63269471,101870.0,101860.0,1.07927065]
[1734156902520,0.63269471,101870.0,101860.0,1.13405447]
[1734156902824,0.54751089,101870.0,101860.0,1.13405447]
[1734156903524,0.63573896,101870.0,101860.0,1.13405447]
[1734156906630,0.63573896,101870.0,101860.0,1.07927065]
[1734156906837,0.63573896,101870.0,101860.0,1.13292447]
[1734156909335,0.63573896,101870.0,101860.0,0.89790443]
[1734156909729,0.63573896,101870.0,101860.0,1.13294259]
[1734156909928,0.63573896,101870.0,101860.0,0.89790443]
[1734156910330,0.54751089,101870.0,101860.0,0.89790443]
[1734156911131,0.63576697,101870.0,101860.0,0.89790443]
[1734156911332,0.54751089,101870.0,101860.0,0.89790443]
[1734156913239,0.69457337,101870.0,101860.0,0.89790443]
[1734156914241,0.69457337,101870.0,101860.0,1.25077085]
[1734156914840,0.69457337,101870.0,101860.0,1.19598703]
[1734156915834,0.74935719,101870.0,101860.0,1.19598703]
[1734156916135,0.63170721,101870.0,101860.0,0.84312061]
[1734156918844,0.27090721,101870.0,101860.0,0.84312061]
[1734156919147,0.63170721,101870.0,101860.0,0.84312061]
[1734156929739,0.27090721,101870.0,101860.0,0.84312061]
[1734156929941,0.63170721,101870.0,101860.0,0.84312061]
[1734156935346,0.27090721,101870.0,101860.0,0.84312061]
[1734156935546,0.63170721,101870.0,101860.0,0.84312061]
[1734156936052,0.27090721,101870.0,101860.0,0.84312061]
[1734156936251,0.63170721,101870.0,101860.0,0.84312061]
[1734156936750,0.57692339,101870.0,101860.0,0.84312061]
[1734156936943,0.69469423,101870.0,101860.0,1.19598703]
[1734156937746,0.74947805,101870.0,101860.0,1.19598703]
[1734156940349,0.74947805,101870.0,101860.0,0.84312061]
[1734156940350,0.69469423,101870.0,101860.0,0.84312061]
[1734156940554,0.69469423,101870.0,101860.0,1.19598703]
[1734156940755,0.69469423,101870.0,101860.0,0.84312061]
[1734156940941,0.57692339,101870.0,101860.0,0.84312061]
[1734156941449,0.69469689,101870.0,101860.0,1.19598703]
[1734156948857,0.74948071,101870.0,101860.0,1.19598703]
[1734156949756,0.69469689,101870.0,101860.0,1.19598703]
[1734156951763,0.33389689,101870.0,101860.0,1.19598703]
[1734156951966,0.69469689,101870.0,101860.0,1.19598703]
[1734156954563,0.27476127,101870.0,101860.0,2.02113849]
[1734156954757,0.16825617,101880.0,101870.0,0.049079]
[1734156954955,0.08891354,101880.0,101870.0,0.80192089]
[1734156955158,0.08891354,101880.0,101870.0,1.15844495]
[1734156955369,0.0006,101880.0,101870.0,1.24713707]
[1734156955569,0.0001,101880.0,101870.0,1.24713707]
[1734156955956,0.0001,101880.0,101870.0,1.23861091]
[1734156956161,0.0001,101880.0,101870.0,1.59941091]
[1734156956562,0.0006,101880.0,101870.0,1.60287601]
[1734156956761,0.0006,101880.0,101870.0,1.24207601]
[1734156957263,0.0006,101880.0,101870.0,1.60287601]
[1734156957565,0.0001,101880.0,101870.0,1.60287601]
[1734156958371,0.0001,101880.0,101870.0,1.2813569]
[1734156958667,0.0006,101880.0,101870.0,1.2813569]
[1734156959368,0.0006,101880.0,101870.0,1.6421569]
[1734156959564,0.0001,101880.0,101870.0,1.34883666]
[1734156959767,0.0001,101880.0,101870.0,0.98803666]
[1734156960362,0.0001,101880.0,101870.0,1.6420961]
[1734156960558,0.0006,101880.0,101870.0,1.24191266]
[1734156960763,0.0006,101880.0,101870.0,1.60271266]
[1734156961267,0.0006,101880.0,101870.0,1.34883666]
[1734156961470,0.0001,101880.0,101870.0,1.34883666]
[1734156961968,0.0001,101880.0,101870.0,1.35874945]
[1734156962268,0.4996534,101900.0,101870.0,2.1153237]
[1734156962470,0.4996534,101900.0,101890.0,0.33831897]
[1734156962863,0.4996534,101900.0,101890.0,0.37071897]
[1734156963168,0.4996534,101900.0,101890.0,0.87071897]
[1734156964374,0.41133986,101900.0,101890.0,0.87071897]
[1734156967074,0.4996534,101900.0,101890.0,0.87071897]
[1734156967274,0.41133986,101900.0,101890.0,0.87071897]
[1734156969388,0.36227286,101900.0,101890.0,0.87071897]
[1734156970172,0.36227286,101900.0,101890.0,0.88042263]
[1734156974070,0.36227286,101900.0,101890.0,0.64595748]
[1734156974462,0.36277286,101900.0,101890.0,0.64595748]
[1734156975479,0.36227286,101900.0,101890.0,0.64595748]
[1734156976579,0.36277286,101900.0,101890.0,0.64595748]
[1734156977170,0.36277286,101900.0,101890.0,0.61355748]
[1734156977470,0.36227286,101900.0,101890.0,0.84802263]
[1734156978469,0.36277286,101900.0,101890.0,0.84802263]
[1734156978871,0.0005,101900.0,101890.0,1.71013846]
[1734156979168,0.47991354,101920.0,101910.0,0.04906]
[1734156979578,0.47991354,101920.0,101910.0,0.10384382]
[1734156979774,0.47991354,101920.0,101910.0,0.60384382]
[1734156981568,0.52896854,101920.0,101910.0,0.54906]
[1734156981880,0.52896854,101920.0,101910.0,0.60384382]
[1734156984374,0.52896854,101920.0,101910.0,0.78312737]
[1734156984674,0.52896854,101920.0,101910.0,0.83791119]
[1734156986582,0.52946854,101920.0,101910.0,0.83791119]
[1734156987683,0.52896854,101920.0,101910.0,0.83791119]
[1734156988486,0.52946854,101920.0,101910.0,0.83791119]
[1734156989583,0.52896854,101920.0,101910.0,0.83791119]
[1734156990486,0.52946854,101920.0,101910.0,0.83791119]
[1734156990786,0.52946854,101920.0,101910.0,0.60384382]
[1734156991384,0.52946854,101920.0,101910.0,0.83791119]
[1734156991582,0.52896854,101920.0,101910.0,0.83791119]
[1734156991882,0.04906,101910.0,101900.0,0.83791319]
[1734156992183,0.52847486,101910.0,101900.0,0.83791319]
[1734156993174,0.52847486,101910.0,101900.0,0.89269701]
[1734156993379,0.16767486,101910.0,101900.0,1.18577845]
[1734157000386,0.16767486,101910.0,101900.0,0.95171108]
[1734157000591,0.16771662,101910.0,101900.0,1.07668396]
[1734157000886,0.19801662,101910.0,101900.0,1.13146778]
[1734157002293,0.19801662,101910.0,101900.0,0.89692726]
[1734157004897,0.19801662,101910.0,101900.0,0.95171108]
[1734157007195,0.19801662,101910.0,101900.0,1.30398492]
[1734157008691,0.20782132,101910.0,101900.0,1.30398492]
[1734157010283,0.1196647,101910.0,101900.0,1.30398492]
[1734157010489,0.20793218,101910.0,101900.0,1.30398492]
[1734157011298,0.1196647,101910.0,101900.0,1.30398492]
[1734157011799,0.10986,101910.0,101900.0,1.30398492]
[1734157012295,0.16782876,101910.0,101900.0,1.30398492]
[1734157014791,0.28552822,101910.0,101900.0,1.30398492]
[1734157016492,0.19725946,101910.0,101900.0,1.30398492]
[1734157017699,0.28554261,101910.0,101900.0,1.30398492]
[1734157018300,0.19725946,101910.0,101900.0,1.30398492]
[1734157019298,0.19725946,101910.0,101900.0,1.01090348]
[1734157022199,0.11769946,101910.0,101900.0,1.26005892]
[1734157022404,0.11769946,101910.0,101900.0,1.07570348]
[1734157022601,0.11769946,101910.0,101900.0,1.32446785]
[1734157022807,0.20600016,101910.0,101900.0,1.32446785]
[1734157023999,0.20600016,101910.0,101900.0,1.32439732]
[1734157024906,0.20600016,101910.0,101900.0,1.32438805]
[1734157025805,0.14706248,101920.0,101910.0,0.04906]
[1734157026006,0.14706248,101930.0,101920.0,0.049055]
[1734157026302,0.19611248,101930.0,101920.0,0.34236098]
[1734157026604,0.44205,101930.0,101920.0,0.63163227]
[1734157026799,0.44205,101930.0,101920.0,0.84761506]
[1734157026800,0.62041248,101930.0,101920.0,0.84761506]
[1734157027200,0.62041248,101930.0,101920.0,0.63163227]
[1734157027601,0.47335,101930.0,101920.0,0.33832629]
[1734157029609,0.47385,101930.0,101920.0,0.33832629]
[1734157030614,0.47335,101930.0,101920.0,0.33832629]
[1734157031810,0.47385,101930.0,101920.0,0.33832629]
[1734157032606,0.47335,101930.0,101920.0,0.33832629]
[1734157033497,0.47385,101930.0,101920.0,0.33832629]
[1734157034512,0.47335,101930.0,101920.0,0.33832629]
[1734157035511,0.47385,101930.0,101920.0,0.33832629]
[1734157036715,0.47335,101930.0,101920.0,0.33832629]
[1734157036907,0.4243,101930.0,101920.0,0.33832629]
[1734157037498,0.4248,101930.0,101920.0,0.33832629]
[1734157038509,0.4243,101930.0,101920.0,0.33832629]
[1734157039708,0.4248,101930.0,101920.0,0.33832629]
[1734157041612,0.47385,101930.0,101920.0,0.33832629]
[1734157042308,0.11305,101930.0,101920.0,0.68641609]
[1734157042510,0.11305,101930.0,101920.0,0.57684845]
[1734157042703,0.11305,101930.0,101920.0,0.68641609]
[1734157043508,0.11305,101930.0,101920.0,1.18641609]
[1734157044812,0.11255,101930.0,101920.0,1.18641609]
[1734157045014,0.47335,101930.0,101920.0,1.18641609]
[1734157045209,0.47335,101930.0,101920.0,0.89311011]
[1734157045606,0.47335,101930.0,101920.0,1.18641609]
[1734157046007,0.47335,101930.0,101920.0,0.89311011]
[1734157046611,0.47335,101930.0,101920.0,1.18641609]
[1734157047612,0.47335,101930.0,101920.0,1.40482784]
[1734157047821,0.47335,101930.0,101920.0,1.40481133]
[1734157052324,0.47335,101930.0,101920.0,1.40496426]
[1734157052513,0.47335,101930.0,101920.0,1.17047679]
[1734157052722,0.47335,101930.0,101920.0,1.11569297]
[1734157054510,0.62041248,101930.0,101920.0,1.11569297]
[1734157055425,0.62041248,101930.0,101920.0,1.17047679]
[1734157056820,0.62041248,101930.0,101920.0,1.17010533]
[1734157057015,0.62041248,101930.0,101920.0,1.52237917]
[1734157057617,0.62041248,101930.0,101920.0,1.30420246]
[1734157058925,0.57136248,101930.0,101920.0,1.30420246]
[1734157059223,0.54006248,101930.0,101920.0,1.30420246]
[1734157059423,0.74325615,101940.0,101920.0,1.01089648]
[1734157059618,0.74375615,101940.0,101930.0,0.63203099]
[1734157059818,0.74375615,101940.0,101930.0,0.10383382]
[1734157059819,0.56717781,101940.0,101930.0,0.10383382]
[1734157060222,0.56717781,101940.0,101930.0,0.60383382]
[1734157060728,0.56667781,101940.0,101930.0,0.60383382]
[1734157061121,0.56667781,101940.0,101930.0,0.89727669]
[1734157061517,0.56667781,101940.0,101930.0,0.60383382]
[1734157061722,0.56717781,101940.0,101930.0,0.89727669]
[1734157062726,0.56667781,101940.0,101930.0,0.89727669]
[1734157063325,0.56667781,101940.0,101930.0,0.60383382]
[1734157063735,0.56717781,101940.0,101930.0,0.60383382]
[1734157064231,0.56717781,101940.0,101930.0,0.89727669]
[1734157064424,0.56717781,101940.0,101930.0,0.60383382]
[1734157064729,0.56717781,101940.0,101930.0,0.83846637]
[1734157065113,0.56717781,101940.0,101930.0,0.60383382]
[1734157066231,0.55741048,101940.0,101930.0,0.60383382]
[1734157066424,0.410348,101940.0,101930.0,0.60383382]
[1734157066725,0.55741048,101940.0,101930.0,0.82062595]
[1734157067031,0.55741048,101940.0,101930.0,1.34866893]
[1734157067830,0.55691048,101940.0,101930.0,1.34866893]
[1734157068527,0.55691048,101940.0,101930.0,1.1318768]
[1734157070125,0.55691048,101940.0,101930.0,1.07709298]
[1734157070430,0.6116943,101940.0,101930.0,0.23460011]
[1734157070631,0.6434943,101940.0,101930.0,0.41061181]
[1734157071128,0.76528882,101940.0,101930.0,0.41061181]
[1734157071320,0.82007264,101940.0,101930.0,0.41061181]
[1734157071523,0.6434943,101940.0,101930.0,0.41061181]
[1734157071919,0.82007264,101940.0,101930.0,0.41061181]
[1734157072120,0.6434943,101940.0,101930.0,0.41061181]
[1734157072332,1.17485646,101940.0,101920.0,0.79344287]
[1734157072528,1.17485646,101940.0,101910.0,0.40182984]
[1734157072529,0.049055,101920.0,101910.0,0.84299887]
[1734157072731,0.049055,101920.0,101910.0,0.549056]
[1734157072732,0.61166956,101920.0,101910.0,0.549056]
[1734157072936,0.64196956,101920.0,101910.0,0.549056]
[1734157073633,0.64196956,101920.0,101910.0,0.549556]
[1734157073938,0.64196956,101920.0,101910.0,0.60433982]
[1734157074634,0.64196956,101920.0,101910.0,0.60383982]
[1734157075534,0.64196956,101920.0,101910.0,0.549056]
[1734157075742,0.67466956,101920.0,101910.0,0.549556]
[1734157076630,0.67466956,101920.0,101910.0,0.549056]
[1734157076832,0.52763882,101920.0,101910.0,0.549056]
[1734157077634,0.52763882,101920.0,101910.0,0.549556]
[1734157078743,0.52763882,101920.0,101910.0,0.549056]
[1734157079745,0.52763882,101920.0,101910.0,0.549556]
[1734157080741,0.52763882,101920.0,101910.0,0.549056]
[1734157081646,0.52763882,101920.0,101910.0,0.549556]
[1734157082446,0.16683882,101920.0,101910.0,0.549556]
[1734157082644,0.52763882,101920.0,101910.0,0.549056]
[1734157083543,0.52763882,101920.0,101910.0,0.60383982]
[1734157083747,0.52763882,101920.0,101910.0,0.60433982]
[1734157084047,0.442555,101920.0,101910.0,0.60433982]
[1734157085455,0.59878267,101930.0,101920.0,0.049055]
[1734157085658,0.58918174,101930.0,101920.0,0.10383882]
[1734157085955,0.55958567,101930.0,101920.0,0.10383882]
[1734157093461,0.70661641,101930.0,101920.0,0.10383882]
[1734157101464,0.34581641,101930.0,101920.0,0.10383882]
[1734157102871,0.26446541,101930.0,101920.0,0.51942264]
[1734157103162,0.70441241,101940.0,101920.0,1.16513935]
[1734157103371,0.50833467,101940.0,101930.0,0.10383382]
[1734157103566,0.14753467,101940.0,101930.0,0.10383382]
[1734157103864,0.14753467,101940.0,101930.0,0.39727669]
[1734157103865,0.14803467,101940.0,101930.0,0.39727669]
[1734157104065,0.14803467,101940.0,101930.0,0.60383382]
[1734157104661,0.14753467,101940.0,101930.0,0.60383382]
[1734157105667,0.14803467,101940.0,101930.0,0.60383382]
[1734157106767,0.14753467,101940.0,101930.0,0.60383382]
[1734157107671,0.14803467,101940.0,101930.0,0.60383382]
[1734157108767,0.14753467,101940.0,101930.0,0.60383382]
[1734157109667,0.14803467,101940.0,101930.0,0.60383382]
[1734157109976,0.14803467,101940.0,101930.0,0.61357781]
[1734157110670,0.14753467,101940.0,101930.0,0.61357781]
[1734157111367,0.14753467,101940.0,101930.0,0.55879399]
[1734157111568,0.14753467,101940.0,101930.0,0.61357781]
[1734157111770,0.14803467,101940.0,101930.0,0.61357781]
[1734157112674,0.14753467,101940.0,101930.0,0.61357781]
[1734157115075,0.17863467,101940.0,101930.0,0.61357781]
[1734157115279,0.11743467,101940.0,101930.0,0.61357781]
[1734157117769,0.11743467,101940.0,101930.0,0.55879399]
[1734157117968,0.11743467,101940.0,101930.0,0.61357781]
[1734157119173,0.16648067,101940.0,101930.0,0.60383382]
[1734157119374,0.23058067,101940.0,101930.0,0.60383382]
[1734157124572,0.23058067,101940.0,101930.0,0.89727669]
[1734157124972,0.23058067,101940.0,101930.0,0.84249287]
[1734157125280,0.23058067,101940.0,101930.0,0.54905]
[1734157125470,0.23058067,101940.0,101930.0,0.84249287]
[1734157125872,0.23058067,101940.0,101930.0,0.89727669]
[1734157128676,0.26258067,101940.0,101930.0,0.89727669]
[1734157130475,0.40961141,101940.0,101930.0,0.89727669]
[1734157132571,0.40961141,101940.0,101930.0,1.24955053]
[1734157133885,0.40961141,101940.0,101930.0,0.84249287]
[1734157137583,0.29217674,101940.0,101930.0,0.84249287]
[1734157143193,0.65297674,101940.0,101930.0,0.84249287]
[1734157149194,0.82955508,101940.0,101930.0,0.84249287]
[1734157150101,1.19035508,101940.0,101930.0,0.84249287]
[1734157150397,1.04332434,101940.0,101930.0,0.04905]
[1734157150791,1.09810816,101940.0,101930.0,0.04905]
[1734157153288,1.2451521,101940.0,101930.0,0.04905]
[1734157156083,0.8843521,101940.0,101930.0,0.04905]